lending/lending_fUSD_20240824
["ID","MTS","AMOUNT","RATE_DAILY","PERIOD"]
[335789468,1724491870883,-461.22500285,0.00018,2]
[335789469,1724491870892,-500.0,0.00018,2]
[335789470,1724491870901,-157.4338975,0.00018025,2]
[335789471,1724491870912,-623.0,0.00018091,2]
[335789472,1724491870923,-1676.45811713,0.000181,2]
[335789473,1724491870932,-246.72073318,0.00018182,2]
[335789474,1724491870941,-447.0,0.0001819,2]
[335789475,1724491870951,-556.0,0.0001819,2]
[335789476,1724491870960,-1138.0,0.0001819,2]
[335789477,1724491870970,-809.0,0.0001819,2]
[335789478,1724491870979,-552.0,0.0001819,2]
[335789479,1724491870988,-1897.0,0.0001819,2]
[335789480,1724491870997,-248.0,0.0001819,2]
[335789481,1724491871007,-3317.0,0.0001819,2]
[335789482,1724491871017,-1154.0,0.0001819,2]
[335789483,1724491871026,-764.0,0.0001819,2]
[335789484,1724491871036,-1077.0,0.0001819,2]
[335789485,1724491871046,-1258.0,0.0001819,2]
[335789486,1724491871055,-900.0,0.00018274,2]
[335789487,1724491871064,-1000.0,0.00018274,2]
[335789488,1724491871073,-288.0,0.000184,6]
[335789489,1724491871083,-167.0,0.00018444,2]
[335789490,1724491871093,-1070.244881,0.000185,2]
[335789491,1724491871102,-500.38378936,0.00018521,2]
[335789492,1724491871111,-529.993892,0.00018521,2]
[335789493,1724491871121,-500.0,0.00018548,2]
[335789494,1724491871130,-236.27491962,0.00018549,15]
[335789495,1724491871140,-535.03,0.00018599,5]
[335789496,1724491871149,-500.0,0.00018599,5]
[335789497,1724491871159,-1285.84,0.00018599,5]
[335789498,1724491871168,-500.0,0.00018599,5]
[335789499,1724491871178,-500.0,0.00018599,5]
[335789500,1724491871188,-2535.4139081,0.000186,2]
[335789501,1724491871197,-210.022953,0.0001863,2]
[335789502,1724491871208,-1703.8144878,0.00018851,2]
[335789503,1724491871217,-4487.5502801,0.00018864,2]
[335789504,1724491871227,-1111.53,0.00018864,5]
[335789505,1724491871237,-603.04,0.00018864,5]
[335789506,1724491871247,-151.0,0.00018865,2]
[335789507,1724491871256,-151.0,0.00018865,2]
[335789508,1724491871265,-151.0,0.00018865,2]
[335789509,1724491871274,-152.331823,0.00018865,2]
[335789510,1724491871284,-51783.0912589,0.00018865,2]
[335789511,1724491871295,-4305.2042401,0.00018865,2]
[335789512,1724491871304,-3897.3735426,0.00018865,2]
[335789513,1724491871313,-10438.7787026,0.00018865,2]
[335789514,1724491871323,-500.0,0.00018866,5]
[335789515,1724491871332,-500.0,0.00018866,5]
[335789516,1724491871341,-500.0,0.00018866,5]
[335789517,1724491871351,-5418.0539147,0.00018867,2]
[335789518,1724491871360,-1507.4243046,0.00018867,2]
[335789519,1724491871369,-342.0316158,0.00018867,2]
[335789520,1724491871378,-500.0,0.00018869,5]
[335789521,1724491871388,-639.27,0.00018869,5]
[335789522,1724491871398,-614.82,0.00018869,5]
[335789523,1724491871407,-2500.0,0.00018869,5]
[335789524,1724491871416,-150.0,0.00018873,2]
[335789525,1724491871425,-535.03,0.00018877,5]
[335789526,1724491871435,-535.03,0.00018877,5]
[335789527,1724491871445,-535.03,0.00018877,5]
[335789528,1724491871454,-535.03,0.00018877,5]
[335789529,1724491871463,-535.03,0.00018877,5]
[335789530,1724491871472,-535.03,0.00018877,5]
[335789531,1724491871482,-535.03,0.00018877,5]
[335789532,1724491871492,-535.03,0.00018877,5]
[335789533,1724491871501,-535.03,0.00018877,5]
[335789534,1724491871512,-535.17324534,0.00018877,5]
[335789535,1724491871521,-500.0,0.00018877,5]
[335789536,1724491871531,-500.0,0.00018877,5]
[335789537,1724491871540,-301.83,0.00018877,5]
[335789538,1724491871549,-500.0,0.00018877,5]
[335789539,1724491871559,-578.79728932,0.00018877,5]
[335789540,1724491871568,-865.19,0.00018877,5]
[335789541,1724491871578,-865.19,0.00018877,5]
[335789542,1724491871588,-865.19,0.00018877,5]
[335789543,1724491871598,-865.19,0.00018877,5]
[335789544,1724491871608,-865.19,0.00018877,5]
[335789545,1724491871621,-865.19,0.00018877,5]
[335789546,1724491871630,-865.19,0.00018877,5]
[335789547,1724491871640,-865.19,0.00018877,5]
[335789548,1724491871650,-865.19,0.00018877,5]
[335789549,1724491871660,-865.38219768,0.00018877,5]
[335789550,1724491871669,-500.0,0.00018877,5]
[335789551,1724491871679,-500.0,0.00018877,5]
[335789552,1724491871689,-500.0,0.00018877,5]
[335789553,1724491871701,-500.0,0.00018877,5]
[335789554,1724491871711,-500.0,0.00018877,5]
[335789555,1724491871721,-500.0,0.00018877,5]
[335789556,1724491871730,-500.0,0.00018877,5]
[335789557,1724491871740,-527.46868646,0.00018877,5]
[335789558,1724491871750,-500.0,0.00018877,5]
[335789559,1724491871760,-1111.53,0.00018877,5]
[335789560,1724491871769,-500.0,0.00018877,5]
[335789561,1724491871779,-1111.53,0.00018877,5]
[335789562,1724491871790,-500.0,0.00018877,5]
[335789563,1724491871799,-1111.53,0.00018877,5]
[335789564,1724491871809,-260.23790858,0.00018877,5]
[335789565,1724491871819,-1111.53,0.00018877,5]
[335789566,1724491871829,-1111.53,0.00018877,5]
[335789567,1724491871839,-1111.53,0.00018877,5]
[335789568,1724491871848,-1111.67071781,0.00018877,5]
[335789569,1724491871858,-819.26,0.00018877,5]
[335789570,1724491871867,-819.26,0.00018877,5]
[335789571,1724491871877,-819.26,0.00018877,5]
[335789572,1724491871887,-819.26,0.00018877,5]
[335789573,1724491871991,-819.26,0.00018877,5]
[335789574,1724491872001,-819.44,0.00018877,5]
[335789575,1724491872010,-1285.84,0.00018877,5]
[335789576,1724491872020,-1285.84,0.00018877,5]
[335789577,1724491872031,-500.0,0.00018877,5]
[335789578,1724491872041,-500.0,0.00018877,5]
[335789579,1724491872051,-500.0,0.00018877,5]
[335789580,1724491872061,-1285.84,0.00018877,5]
[335789581,1724491872070,-1285.84,0.00018877,5]
[335789582,1724491872079,-500.0,0.00018877,5]
[335789583,1724491872089,-500.0,0.00018877,5]
[335789584,1724491872098,-1285.84,0.00018877,5]
[335789585,1724491872108,-2034.93,0.00018877,5]
[335789586,1724491872118,-444.6,0.00018877,5]
[335789587,1724491872127,-1285.84,0.00018877,5]
[335789588,1724491872137,-2034.93,0.00018877,5]
[335789589,1724491872147,-1285.84,0.00018877,5]
[335789590,1724491872156,-2034.93,0.00018877,5]
[335789591,1724491872165,-1285.84,0.00018877,5]
[335789592,1724491872175,-2034.93,0.00018877,5]
[335789593,1724491872185,-1285.84,0.00018877,5]
[335789594,1724491872194,-2034.93,0.00018877,5]
[335789595,1724491872204,-1286.07478988,0.00018877,5]
[335789596,1724491872213,-2034.93,0.00018877,5]
[335789597,1724491872223,-2034.93,0.00018877,5]
[335789598,1724491872232,-4946.96,0.00018877,5]
[335789599,1724491872242,-2034.93,0.00018877,5]
[335789600,1724491872251,-4946.96,0.00018877,5]
[335789601,1724491872260,-2034.93,0.00018877,5]
[335789602,1724491872269,-4946.96,0.00018877,5]
[335789603,1724491872279,-2034.99149166,0.00018877,5]
[335789604,1724491872289,-4946.96,0.00018877,5]
[335789605,1724491872298,-4946.96,0.00018877,5]
[335789606,1724491872308,-4946.96,0.00018877,5]
[335789607,1724491872317,-4946.96,0.00018877,5]
[335789608,1724491872326,-4946.96,0.00018877,5]
[335789609,1724491872335,-4946.96,0.00018877,5]
[335789610,1724491872345,-4946.98244486,0.00018877,5]
[335789611,1724491872354,-513.46,0.00018877,5]
[335789612,1724491872364,-513.46,0.00018877,5]
[335789613,1724491872373,-513.46,0.00018877,5]
[335789614,1724491872382,-513.46,0.00018877,5]
[335789615,1724491872392,-513.46,0.00018877,5]
[335789616,1724491872402,-513.51,0.00018877,5]
[335789617,1724491872411,-8175.52,0.00018877,5]
[335789618,1724491872420,-8175.52,0.00018877,5]
[335789619,1724491872429,-8175.52,0.00018877,5]
[335789620,1724491872438,-8175.52,0.00018877,5]
[335789621,1724491872448,-8175.52,0.00018877,5]
[335789622,1724491872458,-8175.52,0.00018877,5]
[335789623,1724491872467,-8175.52,0.00018877,5]
[335789624,1724491872476,-8175.52,0.00018877,5]
[335789625,1724491872486,-8175.52,0.00018877,5]
[335789626,1724491872495,-8175.67350462,0.00018877,5]
[335789627,1724491872505,-757.28,0.00018877,5]
[335789628,1724491872515,-757.28,0.00018877,5]
[335789629,1724491872525,-757.28,0.00018877,5]
[335789630,1724491872534,-757.28,0.00018877,5]
[335789631,1724491872544,-757.28,0.00018877,5]
[335789632,1724491872553,-757.28988893,0.00018877,5]
[335789633,1724491872562,-786.18,0.00018877,5]
[335789634,1724491872572,-786.18,0.00018877,5]
[335789635,1724491872581,-786.18,0.00018877,5]
[335789636,1724491872591,-786.18,0.00018877,5]
[335789637,1724491872600,-786.18,0.00018877,5]
[335789638,1724491872609,-786.39333519,0.00018877,5]
[335789639,1724491872622,-525.06,0.00018877,5]
[335789640,1724491872631,-525.06,0.00018877,5]
[335789641,1724491872641,-525.06,0.00018877,5]
[335789642,1724491872650,-525.06,0.00018877,5]
[335789643,1724491872659,-525.06,0.00018877,5]
[335789644,1724491872669,-525.06,0.00018877,5]
[335789645,1724491872678,-525.06,0.00018877,5]
[335789646,1724491872687,-525.06,0.00018877,5]
[335789647,1724491872698,-525.06,0.00018877,5]
[335789648,1724491872708,-525.06,0.00018877,5]
[335789649,1724491872717,-639.27,0.00018877,5]
[335789650,1724491872727,-639.27,0.00018877,5]
[335789651,1724491872736,-639.27,0.00018877,5]
[335789652,1724491872746,-639.27,0.00018877,5]
[335789653,1724491872755,-639.27,0.00018877,5]
[335789654,1724491872764,-639.4,0.00018877,5]
[335789655,1724491872774,-500.0,0.00018877,5]
[335789656,1724491872784,-232.56,0.00018877,5]
[335789657,1724491872794,-399.00565806,0.00018877,5]
[335789658,1724491872804,-1634.57,0.00018877,5]
[335789659,1724491872814,-1634.57,0.00018877,5]
[335789660,1724491872823,-1634.57,0.00018877,5]
[335789661,1724491872833,-1634.57,0.00018877,5]
[335789662,1724491872842,-1634.57,0.00018877,5]
[335789663,1724491872852,-1634.57,0.00018877,5]
[335789664,1724491872861,-1634.57,0.00018877,5]
[335789665,1724491872871,-1634.57,0.00018877,5]
[335789666,1724491872881,-1634.57,0.00018877,5]
[335789667,1724491872890,-1634.62034569,0.00018877,5]
[335789668,1724491872899,-614.82,0.00018877,5]
[335789669,1724491872909,-614.82,0.00018877,5]
[335789670,1724491872918,-614.82,0.00018877,5]
[335789671,1724491872928,-614.82,0.00018877,5]
[335789672,1724491872937,-614.82,0.00018877,5]
[335789673,1724491872946,-614.82,0.00018877,5]
[335789674,1724491872956,-603.04,0.00018877,5]
[335789675,1724491872966,-603.04,0.00018877,5]
[335789676,1724491872975,-603.04,0.00018877,5]
[335789677,1724491872984,-603.04,0.00018877,5]
[335789678,1724491872994,-603.04,0.00018877,5]
[335789679,1724491873003,-603.04,0.00018877,5]
[335789680,1724491873012,-603.04,0.00018877,5]
[335789681,1724491873022,-500.0,0.00018877,2]
[335789682,1724491873031,-472.96,0.00018877,5]
[335789683,1724491873040,-500.0,0.00018877,5]
[335789684,1724491873049,-500.0,0.00018877,5]
[335789685,1724491873059,-500.0,0.00018877,5]
[335789686,1724491873068,-500.0,0.00018877,5]
[335789687,1724491873077,-500.0,0.00018877,5]
[335789688,1724491873086,-500.0,0.00018877,5]
[335789689,1724491873095,-497.78,0.00018877,5]
[335789690,1724491873104,-1567168.2857889,0.00018878,5]
[335789691,1724491873114,-151.0,0.00018878,2]
[335789692,1724491873123,-151.327666,0.00018878,2]
[335789693,1724491873132,-151.688776,0.00018878,2]
[335789694,1724491873142,-154.072449,0.00018878,2]
[335789695,1724491873151,-151.0,0.00018878,2]
[335789696,1724491873160,-151.0,0.00018878,2]
[335789697,1724491873170,-151.0,0.00018878,2]
[335789698,1724491873180,-151.0,0.00018878,2]
[335789699,1724491873189,-151.0,0.00018878,2]
[335789700,1724491873199,-151.0,0.00018878,2]
[335789701,1724491873210,-253.153297,0.00018878,2]
[335789702,1724491873220,-253.153297,0.00018878,2]
[335789703,1724491873229,-151.0,0.00018878,2]
[335789704,1724491873239,-151.0,0.00018878,2]
[335789705,1724491873248,-151.818616,0.00018878,2]
[335789706,1724491873257,-151.366467,0.00018878,2]
[335789707,1724491873266,-151.0,0.00018878,2]
[335789708,1724491873277,-151.0,0.00018878,2]
[335789709,1724491873287,-151.0,0.00018878,2]
[335789710,1724491873296,-151.0,0.00018878,2]
[335789711,1724491873306,-152.610257,0.00018878,2]
[335789712,1724491873315,-151.0,0.00018878,2]
[335789713,1724491873325,-151.658204,0.00018878,2]
[335789714,1724491873335,-151.0,0.00018878,2]
[335789715,1724491873347,-151.0,0.00018878,2]
[335789716,1724491873358,-151.0,0.00018878,2]
[335789717,1724491873367,-151.0,0.00018878,2]
[335789718,1724491873376,-151.0,0.00018878,2]
[335789719,1724491873386,-151.0,0.00018878,2]
[335789720,1724491873395,-360.0,0.00018878,2]
[335789721,1724491873405,-360.0,0.00018878,2]
[335789722,1724491873414,-151.0,0.00018878,2]
[335789723,1724491873423,-233.843333,0.00018878,2]
[335789724,1724491873432,-233.843333,0.00018878,2]
[335789725,1724491873441,-386.571323,0.00018878,2]
[335789726,1724491873451,-151.0,0.00018878,2]
[335789727,1724491873460,-386.571323,0.00018878,2]
[335789728,1724491873471,-151.0,0.00018878,2]
[335789729,1724491873480,-151.0,0.00018878,2]
[335789730,1724491873575,-200.825468,0.00018878,2]
[335789731,1724491873585,-183.748234,0.00018878,2]
[335789732,1724491873594,-200.825468,0.00018878,2]
[335789733,1724491873603,-151.0,0.00018878,2]
[335789734,1724491873613,-183.748234,0.00018878,2]
[335789735,1724491873627,-151.0,0.00018878,2]
[335789736,1724491873636,-997.874454,0.00018878,2]
[335789737,1724491873645,-997.874454,0.00018878,2]
[335789738,1724491873654,-151.0,0.00018878,2]
[335789739,1724491873665,-694.819161,0.00018878,2]
[335789740,1724491873674,-151.0,0.00018878,2]
[335789741,1724491873683,-694.819161,0.00018878,2]
[335789742,1724491873693,-204.622939,0.00018878,2]
[335789743,1724491873702,-151.586737,0.00018878,2]
[335789744,1724491873711,-209.70439,0.00018878,2]
[335789745,1724491873721,-209.70439,0.00018878,2]
[335789746,1724491873730,-151.0,0.00018878,2]
[335789747,1724491873739,-151.0,0.00018878,2]
[335789748,1724491873750,-151.0,0.00018878,2]
[335789749,1724491873759,-222.608672,0.00018878,2]
[335789750,1724491873769,-151.0,0.00018878,2]
[335789751,1724491873778,-153.194892,0.00018878,2]
[335789752,1724491873788,-151.000001,0.00018878,2]
[335789753,1724491873798,-151.0,0.00018878,2]
[335789754,1724491873808,-503.4704,0.00018878,2]
[335789755,1724491873818,-503.4704,0.00018878,2]
[335789756,1724491873828,-151.0,0.00018878,2]
[335789757,1724491873837,-222.2436,0.00018878,2]
[335789758,1724491873847,-696088.23281482,0.0001888,2]
[335789759,1724491873856,-2000.0,0.000189,2]
[335789760,1724491873866,-288.0,0.000189,6]
[335789761,1724491873876,-6348.5575493,0.00018987,2]
[335789762,1724491873885,-1311.0341215,0.00018987,2]
[335789763,1724491873895,-297.4710687,0.00018987,2]
[335789764,1724491873905,-45036.6889724,0.00018987,2]
[335789765,1724491873915,-3744.3138216,0.00018987,2]
[335789766,1724491873925,-3389.616104,0.00018987,2]
[335789767,1724491873934,-9078.7942212,0.00018987,2]
[335789768,1724491873943,-164554.19321326,0.00019,2]
[335789769,1724491873952,-3000.0,0.00019,2]
[335789770,1724491873962,-7288.23699373,0.00019,2]
[335789771,1724491873971,-590650.26483,0.00019,2]
[335789772,1724491873982,-1242.77398429,0.00019,2]
[335789773,1724491873992,-155.0,0.00019,2]
[335789774,1724491874001,-155.20520641,0.00019,2]
[335789775,1724491874011,-186.66001426,0.00019,2]
[335789776,1724491874020,-902.5067971,0.00019,2]
[335789777,1724491874029,-150.0,0.00019,2]
[335789778,1724491874039,-154.109839,0.00019,2]
[335789779,1724491874049,-153.367018,0.00019,2]
[335789780,1724491874058,-151.0,0.00019,2]
[335789781,1724491874069,-151.0,0.00019,2]
[335789782,1724491874078,-151.0,0.00019,2]
[335789783,1724491874087,-239.165859,0.00019,2]
[335789784,1724491874097,-151.0,0.00019,2]
[335789785,1724491874106,-151.0,0.00019,2]
[335789786,1724491874116,-253.153297,0.00019,2]
[335789787,1724491874125,-253.153297,0.00019,2]
[335789788,1724491874134,-151.0,0.00019,2]
[335789789,1724491874144,-151.0,0.00019,2]
[335789790,1724491874153,-151.0,0.00019,2]
[335789791,1724491874162,-151.0,0.00019,2]
[335789792,1724491874171,-151.0,0.00019,2]
[335789793,1724491874180,-151.0,0.00019,2]
[335789794,1724491874190,-151.364798,0.00019,2]
[335789795,1724491874200,-151.56779,0.00019,2]
[335789796,1724491874209,-151.0,0.00019,2]
[335789797,1724491874218,-152.125517,0.00019,2]
[335789798,1724491874228,-151.0,0.00019,2]
[335789799,1724491874237,-151.0,0.00019,2]
[335789800,1724491874247,-152.503759,0.00019,2]
[335789801,1724491874256,-151.853403,0.00019,2]
[335789802,1724491874265,-151.0,0.00019,2]
[335789803,1724491874275,-222.512595,0.00019,2]
[335789804,1724491874284,-151.0,0.00019,2]
[335789805,1724491874293,-151.0,0.00019,2]
[335789806,1724491874303,-152.651193,0.00019,2]
[335789807,1724491874312,-151.0,0.00019,2]
[335789808,1724491874322,-151.515454,0.00019,2]
[335789809,1724491874332,-167829.2418642,0.00019,2]
[335789810,1724491874573,-7104.61058235,0.00019,2]
[335789811,1724491874593,-222.2436,0.00018,2]
[335789812,1724491874603,-22289.86784,0.00019,2]
[335789813,1724491874628,-771.144,0.00019,2]
[335789814,1724491874639,-136396.53058783,0.00019,2]
[335789815,1724491874651,-128813.91762358,0.00019,2]
[335789816,1724491874662,-968.04826954,0.00019,2]
[335789817,1724491891422,150.0,0.00025609,120]
[335789822,1724491946168,-453.1164,0.00010858,2]
[335789823,1724491946191,-500.0,0.00010958,2]
[335789824,1724491946213,-500.0,0.00010958,2]
[335789825,1724491946236,-500.0,0.00010958,2]
[335789826,1724491946258,-500.0,0.00010958,2]
[335789827,1724491946279,-500.0,0.00010958,2]
[335789828,1724491946301,-526.18953619,0.00010958,2]
[335789829,1724491946324,-500.0,0.00010958,2]
[335789830,1724491946349,-500.0,0.00010958,2]
[335789831,1724491946372,-510.90774139,0.00010958,2]
[335789832,1724491946394,-500.0,0.00010958,2]
[335789833,1724491946416,-500.0,0.00010958,2]
[335789834,1724491946438,-500.0,0.00010958,2]
[335789835,1724491946461,-500.0,0.00010958,2]
[335789836,1724491946484,-539.32283446,0.00010958,2]
[335789837,1724491946506,-527.05461504,0.00010958,2]
[335789838,1724491946529,-537.87954272,0.00010958,2]
[335789839,1724491946551,-637.34172068,0.00010958,2]
[335789840,1724491946574,-500.0,0.00010958,2]
[335789841,1724491946597,-526.39391045,0.00010958,2]
[335789842,1724491946621,-500.0,0.00010958,2]
[335789843,1724491946644,-500.0,0.00010958,2]
[335789844,1724491946669,-525.32704852,0.00010958,2]
[335789845,1724491946693,-500.0,0.00010958,2]
[335789846,1724491946716,-500.0,0.00010958,2]
[335789847,1724491946742,-548.32065742,0.00010958,2]
[335789848,1724491946765,-500.0,0.00010958,2]
[335789849,1724491946789,-508.08303277,0.00010958,2]
[335789850,1724491946812,-500.0,0.00010958,2]
[335789851,1724491946835,-520.20430157,0.00010958,2]
[335789852,1724491946859,-500.0,0.00010958,2]
[335789853,1724491946883,-500.0,0.00010958,2]
[335789854,1724491946905,-525.94426824,0.00010958,2]
[335789855,1724491946927,-500.0,0.00010958,2]
[335789856,1724491946950,-677.03,0.00010958,2]
[335789857,1724491946973,-508.24529537,0.00010958,2]
[335789858,1724491946996,-500.0,0.00010958,2]
[335789859,1724491947020,-500.0,0.00010958,2]
[335789860,1724491947044,-503.84316038,0.00010958,2]
[335789861,1724491947067,-507.1851277,0.00010958,2]
[335789862,1724491947091,-500.0,0.00010958,2]
[335789863,1724491947114,-518.53512941,0.00010958,2]
[335789864,1724491947139,-506.92618102,0.00010958,2]
[335789865,1724491947162,-503.88576845,0.00010958,2]
[335789866,1724491947186,-500.0,0.00010958,2]
[335789867,1724491947209,-504.09222412,0.00010958,2]
[335789868,1724491947232,-506.7326421,0.00010958,2]
[335789869,1724491947255,-500.0,0.00010958,2]
[335789870,1724491947278,-500.0,0.00010958,2]
[335789871,1724491947302,-500.0,0.00010958,2]
[335789872,1724491947327,-504.07619865,0.00010958,2]
[335789873,1724491947351,-527.54680116,0.00010958,2]
[335789874,1724491947374,-500.0,0.00010958,2]
[335789875,1724491947396,-503.74858197,0.00010958,2]
[335789876,1724491947420,-500.0,0.00010958,2]
[335789877,1724491947443,-300.85253603,0.00010958,2]
[335789878,1724491947465,-500.0,0.00010958,2]
[335789879,1724491947488,-500.0,0.00010958,2]
[335789880,1724491947511,-514.69052543,0.00010958,2]
[335789881,1724491947535,-500.0,0.00010958,2]
[335789882,1724491947558,-524.42752315,0.00010958,2]
[335789883,1724491947581,-504.35469619,0.00010958,2]
[335789884,1724491947605,-500.0,0.00010958,2]
[335789885,1724491947628,-500.0,0.00010958,2]
[335789886,1724491947654,-500.0,0.00010958,2]
[335789887,1724491947677,-512.27363512,0.00010958,2]
[335789888,1724491947698,-500.0,0.00010958,2]
[335789889,1724491947721,-500.0,0.00010958,2]
[335789890,1724491947745,-500.0,0.00010958,2]
[335789891,1724491947767,-500.0,0.00010958,2]
[335789892,1724491947789,-505.8428205,0.00010958,2]
[335789893,1724491947811,-542.61655343,0.00010958,2]
[335789894,1724491947833,-500.0,0.00010958,2]
[335789895,1724491947976,-508.54591375,0.00010958,2]
[335789896,1724491947999,-527.24045231,0.00010958,2]
[335789897,1724491948023,-500.0,0.00010958,2]
[335789898,1724491948048,-536.05479589,0.00010958,2]
[335789899,1724491948071,-500.0,0.00010958,2]
[335789900,1724491948095,-500.0,0.00010958,2]
[335789901,1724491948119,-500.0,0.00010958,2]
[335789902,1724491948141,-558.24511869,0.00010958,2]
[335789903,1724491948164,-526.59290814,0.00010958,2]
[335789904,1724491948187,-518.71008729,0.00010958,2]
[335789905,1724491948210,-556.12443948,0.00010958,2]
[335789906,1724491948234,-500.0,0.00010958,2]
[335789907,1724491948257,-237.30707998,0.00010958,2]
[335789908,1724491948279,-537.12805056,0.00010958,2]
[335789909,1724491948302,-500.0,0.00010958,2]
[335789910,1724491948325,-500.0,0.00010958,2]
[335789911,1724491948349,-500.0,0.00010958,2]
[335789912,1724491948372,-229.42051796,0.00010958,2]
[335789913,1724491948396,-500.0,0.00010958,2]
[335789914,1724491948419,-500.0,0.00010958,2]
[335789915,1724491948441,-500.0,0.00010958,2]
[335789916,1724491948464,-181.82136836,0.00010958,2]
[335789917,1724491948487,-529.61657966,0.00010958,2]
[335789918,1724491948509,-500.0,0.00010958,2]
[335789919,1724491948535,-508.45548784,0.00010958,2]
[335789920,1724491948557,-511.05158362,0.00010958,2]
[335789921,1724491948581,-500.0,0.00010958,2]
[335789922,1724491948604,-500.0,0.00010958,2]
[335789923,1724491948628,-500.0,0.00010958,2]
[335789924,1724491948653,-502.26500359,0.00010958,2]
[335789925,1724491948675,-500.0,0.00010958,2]
[335789926,1724491948700,-500.0,0.00010958,2]
[335789927,1724491948723,-500.0,0.00010958,2]
[335789928,1724491948746,-500.0,0.00010958,2]
[335789929,1724491948768,-500.0,0.00010958,2]
[335789930,1724491948791,-520.06968339,0.00010958,2]
[335789931,1724491948813,-502.83954802,0.00010958,2]
[335789932,1724491948838,-500.0,0.00010958,2]
[335789933,1724491948861,-500.0,0.00010958,2]
[335789934,1724491948883,-548.3668221,0.00010958,2]
[335789935,1724491948906,-500.0,0.00010958,2]
[335789936,1724491948928,-498.80997167,0.00010958,2]
[335789937,1724491948951,-500.0,0.00010958,2]
[335789938,1724491948973,-502.5752523,0.00010958,2]
[335789939,1724491948997,-155.71,0.00010959,2]
[335789940,1724491949023,-500.0,0.00010985,2]
[335789941,1724491949048,-500.0,0.00010985,2]
[335789942,1724491949072,-500.0,0.00010997,2]
[335789943,1724491949109,-500.0,0.00010998,2]
[335789944,1724491949134,-500.0,0.00010998,2]
[335789945,1724491949159,-500.0,0.00010998,2]
[335789946,1724491949186,-500.0,0.00010998,2]
[335789947,1724491949211,-500.0,0.00010998,2]
[335789948,1724491949234,-500.0,0.00010998,2]
[335789949,1724491949257,-500.0,0.00010998,2]
[335789950,1724491949280,-500.0,0.00010998,2]
[335789951,1724491949304,-500.0,0.00010998,2]
[335789952,1724491949327,-500.0,0.00010998,2]
[335789953,1724491949350,-500.0,0.00010998,2]
[335789954,1724491949373,-608.1625351,0.00010998,2]
[335789955,1724491949395,-166.04807629,0.00010999,2]
[335789956,1724491949418,-500.0,0.00010999,2]
[335789957,1724491949440,-500.0,0.00010999,2]
[335789958,1724491949463,-500.0,0.00010999,2]
[335789959,1724491949485,-500.0,0.00010999,2]
[335789960,1724491949507,-500.0,0.00010999,2]
[335789961,1724491949531,-515.67326661,0.00010999,2]
[335789962,1724491949553,-402.35973774,0.00010999,2]
[335789963,1724491949576,-500.0,0.00010999,2]
[335789964,1724491949608,-500.0,0.00010999,2]
[335789965,1724491949632,-536.36,0.00010999,2]
[335789966,1724491949656,-500.0,0.00010999,2]
[335789967,1724491949683,-176.29943856,0.00010999,2]
[335789968,1724491949707,-500.0,0.00010999,2]
[335789969,1724491949734,-576.00608654,0.00010999,2]
[335789970,1724491949756,-500.0,0.00010999,2]
[335789971,1724491949779,-500.0,0.00010999,2]